Cogmind - Beta 14 @@@ ROGUE MODE // 2024.09.02 @ 16:23:57 Player: Coronach Result: Self-destructed Performance ------------- Evolutions (2) 1000 Regions Visited (3) 600 Robots Destroyed (21) 105 Value Destroyed (607) 607 Prototype IDs (0) 0 Alien Tech Used (0) 0 Bonus (0) 0 TOTAL SCORE: 2312 Bonus ------- None Cogmind --------- Core Integrity 486/550 Matter 260/300 Energy 200/200 System Corruption 0% Temperature Warm (192) Movement Rolling (105) Ox1 Location -8/Materials Parts ------- > --- POWER (1) -------- Subdweller Power Source > --- PROPULSION (2) --- Armored Wheel Armored Wheel > --- UTILITY (6) ------ Subdweller Optics Scrap Shield Makeshift System Shield > --- WEAPON (2) ------- Subdweller Laser Subdweller Laser > --- INVENTORY (5) ---- Compact Wheel Shock Bomb Launcher Dirty Datajack (20) Scrap Shield Fragment (49) Scrap Shield Fragment (45) Peak State ------------ > --- POWER ------------ Subdweller Power Source > --- PROPULSION ------- Armored Wheel Armored Wheel > --- UTILITY ---------- Subdweller Optics Scrap Shield Makeshift System Shield > --- WEAPON ----------- Subdweller Laser Subdweller Laser > --- INVENTORY -------- Compact Wheel Compact Wheel Dirty Datajack Scrap Shield Fragment Scrap Shield Fragment [Rating: 21] Favorites ----------- Power Light Ion Engine Engine Light Ion Engine Propulsion Compact Wheel Leg Aluminum Leg Wheel Compact Wheel Utility Sensor Array Device Sensor Array Storage Small Storage Unit Processor Signal Interpreter Hackware Makeshift System Shield Protection Scrap Shield Weapon Autogun Energy Gun Subdweller Laser Ballistic Gun Autogun Build | -11 -10 -10 -8 ------- Run | Yrd Mat Sub Mat Slots Evolved 4 | . . . 4 Power . | . . . . Propulsion . | . . . . Utility 4 | . . . 4 Weapon . | . . . . Parts Attached 28 | 2 13 9 4 Power 5 | . 3 2 . Engine 5 | . 3 2 . Core . | . . . . Reactor . | . . . . Propulsion 7 | . 3 2 2 Treads . | . . . . Leg 1 | . 1 . . Wheel 6 | . 2 2 2 Hover . | . . . . Flight . | . . . . Utility 11 | 2 4 3 2 Device 6 | 2 2 1 1 Storage 1 | . 1 . . Processor 1 | . 1 . . Hackware 1 | . . . 1 Protection 2 | . . 2 . Artifact . | . . . . Weapon 5 | . 3 2 . Energy Gun 2 | . . 2 . Energy Cannon . | . . . . Ballistic Gun 3 | . 3 . . Ballistic Cannon . | . . . . Launcher . | . . . . Special Weapon . | . . . . Impact Weapon . | . . . . Slashing Weapon . | . . . . Piercing Weapon . | . . . . Special Melee Weapon . | . . . . Unidentified Prototypes . | . . . . Parts Lost 5 | . 2 3 . Power 2 | . 1 1 . Propulsion . | . . . . Utility 2 | . 1 1 . Weapon 1 | . . 1 . Highest Loss Streak 3 | . 1 3 . To Critical Strikes . | . . . . Average Slot Usage (%) 95 | . 99 87 72 Engine 13 | . 14 13 9 Leg 7 | . 9 . . Wheel 20 | . 18 28 18 Device 12 | . 15 3 9 Storage 8 | . 10 3 . Processor 1 | . 2 . . Protection 2 | . . 9 9 Energy Gun 6 | . 3 11 18 Ballistic Gun 21 | . 24 17 . Peak Build Rating 21 | 9 10 13 21 Average Rating 10 | 6 9 12 20 On Entrance 9 | 6 9 10 13 Naked Turns . | . . . . Heaviest Build 33 | 9 15 31 33 Greatest Support 32 | 20 32 32 32 Greatest Overweight (x) 2 | . . . 2 Average Overweight (x) . | . . . 1 Largest Inventory Capacity 8 | 5 8 8 5 Average Capacity 6 | 5 7 5 5 Most Carried 8 | 5 8 8 5 Average Carried 6 | 2 6 5 4 Final Capacity 8 | 5 8 5 5 Final Carried 8 | 4 8 5 5 Class Distribution -------------------- 83% | Mutant 16% | Subdweller-Mutant Dominant Class ---------------- Mutant | -10/Materials Subdweller-Mutant | -10/Subcaves Subdweller-Mutant | -8/Materials Resources | -11 -10 -10 -8 ----------- Run | Yrd Mat Sub Mat Matter Collected 926 | 238 409 279 . Remotely . | . . . . Salvage Created 832 | 106 482 204 40 Parts 43 | 6 30 6 1 Haulers Intercepted . | . . . . Recyclers Shooed 3 | 1 2 . . Parts Field Recycled . | . . . . Retrieved Matter . | . . . . Parts Self-Destructed 5 | . . 5 . Prevented . | . . . . Kills | -11 -10 -10 -8 ------- Run | Yrd Mat Sub Mat Combat Hostiles Destroyed 15 | . 10 4 1 Guns 15 | . 10 4 1 Classes Destroyed 10 | 2 4 3 1 Tunneler 1 | 1 . . . Recycler 1 | 1 . . . Operator 1 | . 1 . . Watcher 3 | . 3 . . Swarmer 2 | . 2 . . Grunt 8 | . 8 . . Duelist 1 | . . . 1 Sentry 1 | . . 1 . Artisan 1 | . . 1 . Subdweller 3 | . . 3 . Best Kill Streak 2 | 2 2 2 1 Combat Bots Only 2 | . 2 2 1 Max Kills in Single Turn 1 | 1 1 1 1 Gunslinging . | . . . . Exploded . | . . . . Melee . | . . . . Uniques/NPCs Destroyed . | . . . . Combat | -11 -10 -10 -8 -------- Run | Yrd Mat Sub Mat Hostile Shots Fired 121 | . 68 34 19 Missed 30 | . 19 7 4 Damage Taken 1470 | . 636 527 307 Core 250 | . 123 63 64 Absorbed by Shields . | . . . . Core Remaining (%) 62 | 100 . 25 . Volleys Fired 112 | 6 60 36 10 Largest 2 | 2 2 2 2 Hottest 120 | 70 70 120 120 Shots Fired 214 | 12 118 68 16 Gun 214 | 12 118 68 16 Cannon . | . . . . Launcher . | . . . . Special . | . . . . Kinetic 138 | 6 81 51 . Thermal 76 | 6 37 17 16 Explosive . | . . . . Electromagnetic . | . . . . Robot Hit Streak 24 | 3 21 21 24 Robot Miss Streak 4 | 2 4 1 1 Penetration Max . | . . . . Secondary Targets 1 | . 1 . . Max Gunslinging Chain 1 | . 1 . . Shots Hit Robots 145 | 7 70 56 12 Core Hits 35 | 3 21 9 2 Critical Kills . | . . . . Critical Parts Destroyed 2 | . 1 1 . Critical Strikes 5 | 1 2 2 . Burn 2 | 1 1 . . Destroy 3 | . 1 2 . Melee Attacks . | . . . . Impact . | . . . . Slashing . | . . . . Piercing . | . . . . Sneak Attacks . | . . . . Combat Hostiles . | . . . . Follow-up Attacks . | . . . . Damage Inflicted 1773 | 89 940 480 264 Guns 1773 | 89 940 480 264 Cannons . | . . . . Explosions . | . . . . Melee . | . . . . Ramming . | . . . . Kinetic 992 | 41 677 274 . Thermal 781 | 48 263 206 264 Explosive . | . . . . Electromagnetic . | . . . . Impact . | . . . . Slashing . | . . . . Piercing . | . . . . Highest Corruption . | . . . . Average Corruption . | . . . . Corruption Purged . | . . . . Corruption Blocked . | . . . . Overload Shots . | . . . . Overflow Damage . | . . . . Projectiles . | . . . . Explosions . | . . . . Melee . | . . . . Knockbacks . | . . . . Impact . | . . . . Kinetic . | . . . . Secondary . | . . . . Self-Inflicted Damage . | . . . . Shots . | . . . . Rammed . | . . . . Targets Rammed . | . . . . Kicked . | . . . . Crushed . | . . . . Highest Temperature 279 | 54 177 18 279 Average Temperature 55 | 28 43 10 155 Received Heat Transfer 573 | . 342 150 81 Siege Activations . | . . . . Robots Corrupted . | . . . . Combat Hostiles . | . . . . Parts Fried . | . . . . Impact Corruptions . | . . . . Robots Melted . | . . . . Combat Hostiles . | . . . . Parts Melted . | . . . . Heat Transferred 1648 | 222 851 250 325 Parts Sabotaged . | . . . . Parts Stolen . | . . . . Parts Stripped . | . . . . Power Chain Reactions . | . . . . Alert | -11 -10 -10 -8 ------- Run | Yrd Mat Sub Mat Peak Influence 227 | 10 227 . 85 Initial 6 | . 6 . . Average 51 | 5 54 . 30 Maximum Alert Level 1 | . 1 . . Low Security (%) 98 | 100 98 . 100 Level 1 1 | . 1 . . Level 2 . | . . . . Level 3 . | . . . . Level 4 . | . . . . Level 5 . | . . . . High Security . | . . . . Max Security . | . . . . Squads Dispatched 3 | . 2 . 1 Investigation . | . . . . Extermination . | . . . . Reinforcement 3 | . 2 . 1 Assault . | . . . . Garrison . | . . . . Intercept . | . . . . Searches Triggered . | . . . . Construction Impeded . | . . . . Haulers Reinforced . | . . . . Active Scanning Responses . | . . . . Cargo Convoy Interrupts . | . . . . Stealth | -11 -10 -10 -8 --------- Run | Yrd Mat Sub Mat Distress Signals 1 | . . . 1 Communications Jammed . | . . . . Distress Signals . | . . . . Times Spotted 41 | . 28 5 8 Peak Tracking Total 6 | . 5 1 6 Tactical Retreats 5 | . 5 . . Traps | -11 -10 -10 -8 ------- Run | Yrd Mat Sub Mat Traps Triggered 2 | . 2 . . Indirectly . | . . . . Trap Hack Attempts . | . . . . Triggered . | . . . . Disarmed . | . . . . Reprogrammed . | . . . . Reused . | . . . . Traps Extracted . | . . . . Installed . | . . . . Triggered . | . . . . Machines | -11 -10 -10 -8 ---------- Run | Yrd Mat Sub Mat Machines Disabled 1 | . 1 . . Max in Single Turn 1 | . 1 . . Machines Repaired . | . . . . Machines Dismantled . | . . . . Machines Sabotaged . | . . . . Overloaded Fab Kills . | . . . . Hacking | -11 -10 -10 -8 --------- Run | Yrd Mat Sub Mat Machines Accessed 8 | . 5 . 3 Terminals 8 | . 5 . 3 Fabricators . | . . . . Repair Stations . | . . . . Recycling Units . | . . . . Scanalyzers . | . . . . Garrison Access . | . . . . Total Hacks 29 | . 17 . 12 Successful 21 | . 14 . 7 Failed 8 | . 3 . 5 Catastrophic 1 | . . . 1 Database Lockouts . | . . . . Manual 29 | . 17 . 12 Terminals 29 | . 17 . 12 Fabricators . | . . . . Repair Stations . | . . . . Recycling Units . | . . . . Scanalyzers . | . . . . Garrison Access . | . . . . Terminal Hacks 3 | . 2 . 1 Terminal Index 2 | . 1 . 1 Zone Layout 1 | . 1 . . Fabricator Hacks . | . . . . Repair Station Hacks . | . . . . Recycling Unit Hacks . | . . . . Scanalyzer . | . . . . Garrison Access Hacks . | . . . . Unauthorized Hacks 18 | . 12 . 6 Terminals 18 | . 12 . 6 Track 5 | . 4 . 1 Botnet 3 | . 2 . 1 Operators 2 | . 1 . 1 Skim 8 | . 5 . 3 Fabricators . | . . . . Repair Stations . | . . . . Recycling Units . | . . . . Scanalyzers . | . . . . Garrison Access . | . . . . Data Cores Recovered 1 | . 1 . . Used 1 | . 1 . . Hacking Detections 7 | . 4 . 3 Full Trace Events . | . . . . Feedback Events . | . . . . Feedback Blocked . | . . . . Robot Schematics Acquired . | . . . . Robots Built . | . . . . Authchips . | . . . . Time . | . . . . Total Robot Build Rating . | . . . . Part Schematics Acquired . | . . . . Parts Built . | . . . . Authchips . | . . . . Time . | . . . . Total Part Build Rating . | . . . . Parts Repaired . | . . . . Time . | . . . . Parts Recycled . | . . . . Recycled Matter . | . . . . Retrieved Matter . | . . . . Retrieved Components . | . . . . Parts Scanalyzed . | . . . . Part Schematics Acquired . | . . . . Parts Damaged . | . . . . Bothacking | -11 -10 -10 -8 ------------ Run | Yrd Mat Sub Mat Used RIF Installer . | . . . . Robots Hacked . | . . . . Non-combat . | . . . . Combat . | . . . . Robot Hacks Applied . | . . . . Relay Couplers Released . | . . . . Fabnet Peak Effective % . | . . . . Robots Rewired . | . . . . Allies Hacked . | . . . . Hacks Repelled . | . . . . Allies | -11 -10 -10 -8 -------- Run | Yrd Mat Sub Mat Total Allies . | . . . . Largest Group . | . . . . Highest-Rated Group . | . . . . Highest-Rated Ally . | . . . . Total Orders . | . . . . Ally Attacks . | . . . . Total Damage . | . . . . Kills . | . . . . Allies Corrupted . | . . . . Allies Melted . | . . . . Intel | -11 -10 -10 -8 ------- Run | Yrd Mat Sub Mat Robot Analysis Total . | . . . . Derelict Logs Recovered . | . . . . Drone Launches . | . . . . Drone Recoveries . | . . . . Exploration | -11 -10 -10 -8 ------------- Run | Yrd Mat Sub Mat Turns Passed 2356 | 35 1727 425 169 Spaces Moved 1133 | 8 755 274 96 Core . | . . . . Treads . | . . . . Legs 365 | 8 357 . . Wheels 768 | . 398 274 96 Hover . | . . . . Flight . | . . . . Fastest Speed 100 | 120 100 100 105 Average Speed 106 | 120 109 100 106 Slowest Speed 120 | 120 120 100 120 Overloaded Moves . | . . . . Propulsion Burnouts . | . . . . Robots Hopped . | . . . . Cave-ins Triggered . | . . . . Exploration Rate (%) 27 | 2 89 6 14 Regions Visited 3 Branch Regions 1 Pre-discovered Areas . | . . . . Known Exits Taken 2 | . 1 1 . Unknown Exits Taken 1 | 1 . . . Scrap Searched 2 | . . 2 . Spaces Dug . | . . . . Terrain Destroyed . | . . . . Melee . | . . . . Projectile . | . . . . AOE . | . . . . Terrain Rammed . | . . . . Walls Destroyed . | . . . . Machines Disabled . | . . . . Actions | -11 -10 -10 -8 --------- Run | Yrd Mat Sub Mat Total 2090 | 22 1549 372 147 Wait 753 | 1 694 25 33 Move 1130 | 7 754 273 96 Hop . | . . . . Pick Up 25 | 2 13 9 1 Fast Attach 15 | 2 7 4 2 Attach 7 | . 3 2 2 Detach 8 | . 4 2 2 Swap 6 | . 3 3 . Drop 31 | 4 11 15 1 Fire 112 | 6 60 36 10 Melee . | . . . . Ram . | . . . . Kick . | . . . . Crush . | . . . . Escape Stasis . | . . . . Rewire . | . . . . Trap . | . . . . Miscellaneous 3 | . . 3 . Route ------- -11/Scrapyard -10/Materials (discovered 6 exits: *Mat x3 / *Min x2 / *Sub) -10/Subcaves (discovered 2 exits: *Mat x2) -8/Materials History --------- Turn | Location | Event 23 | -11/Scrapyard | Discovered new exit (range 3) 36 | -11/Scrapyard | Entered Materials 318 | -10/Materials | Build established: Mutant 446 | -10/Materials | Discovered new exit (range 16) 466 | -10/Materials | Discovered new exit (range 10) 468 | -10/Materials | Identified exit to Mines 476 | -10/Materials | Identified exit to Materials 506 | -10/Materials | Discovered exit to Mines (range 15) 612 | -10/Materials | Discovered exit to Materials (range 12) 731 | -10/Materials | Learned Storage stockpile data 881 | -10/Materials | Learned 2 Mines zone layouts 938 | -10/Materials | Identified exit to Subcaves 1763 | -10/Materials | Entered Subcaves 1764 | -10/Subcaves | Identified exit to Materials 1795 | -10/Subcaves | Discovered exit to Materials (range 8) 1835 | -10/Subcaves | Disturbed a concealed Subdweller 1837 | -10/Subcaves | Core integrity fell below 50% 1993 | -10/Subcaves | Lost 3 parts (1p1u1w) 2188 | -10/Subcaves | Entered Materials 2188 | -8/Materials | Evolved 4 slots: Utility x4 2249 | -8/Materials | Build established: Subdweller-Mutant 2357 | -8/Materials | Self-destructed Last Messages --------------- Testing... Terminal linked with 0 systems. Awaiting botnet instructions. 02244_ Connecting with Terminal... >>Trojan(Skim) Trojan loaded successfully. Testing... Terminal linked with 2 systems. Please expand to 2 more systems! 02253_ K-01 Serf collects debris. 02272_ K-01 Serf cleans the Recycling Unit. 02276_ K-01 Serf collects debris. 02279_ ALERT: Hostiles spotted, dispatching reinforcements to Terminal M008. 02291_ K-01 Serf collects debris. 02312_ W-25 Informer sends out distress signal. 02314_ K-01 Serf collects debris. 02331_ K-01 Serf cleans the Neutrino Reactor. 02336_ L-31 Rogue destroyed. 02337_ K-01 Serf collects debris. Map ----- +----------------------------------------------------+ | ?????????????????????????????????????????????????? | | ?????????????????????????????????# ? ? #???????? | | ?????????????????????????????????# #???????? | | ?????????????????????????????????# #???????? | | ??????????????????????????######## #???????? | | ??????????????????????????# # """ #???????? | | ??????????????????????????# # """"" #???????? | | ??????###############?????#"" =# """"" #???????? | | ??????# # #?????#"Y # """"" #???????? | | ??????# # #?????#"" # """ #???????? | | ??????# = [ # #?????# #? ?????????? | | ??????# = + ##########+######+####???????? | | ??????# = """ # #???????? | | ??????# """ # #???????? | | ??????# "T" """ # #???????? | | ??????# """ #######+############## #???????? | | ??????############ #???????????# #???????? | | ??????????# """ #! ! ]#######?????# #???????? | | ??????????# "T" + # ####### #???????? | | ??????????# # " =!!# #???????? | | ??????????# # T =!!# #???????? | | ??????????# # " =!!# #???????? | | ??????????# # # ###########???????? | | ??????????###+############# ###########????????? | | ????????????????# # # #???????o? | | ??????o?????????# "S @# # #????????? | | ????????????????# """ %gr / +????????? | | ????????????????# "" """ # # #????????? | | ????????????????# """ # # #????????? | | ????????????????# """g# # #????????? | | ????????????????# # # #????????? | | ????????????????# g ]# # #????????? | | ????????????????######+#### ########/##????????? | | ????????????????????? ???# o #???????? ????????? | | ????????????????????? ???# #????????? ???????? | | ???????????????????? ????# #?????????? ?????? | | ???????????????????? ????# #???????????? #????? | | ????????????????????##???? ?????????????#????? | | ?????????????????????????? ??????????????????? | | ?????????????????????????? ??????????????????? | | ?????????????????????????? ??????????????????? | | ?????????????????????????# = #?????????????????? | | ?????????????????????????#######?????????????????? | | ?????????????????????????????????????????????????? | | ?????????????????????????????????????????????????? | | ?????????????????????????????????????????????????? | | ?????????????????????????????????????????????????? | | ?????????????????????????????????????????????????? | | ?????????????????????????????????????????????????? | | ?????????????????????????????????????????????????? | +----------------------------------------------------+ Best States ------------- Heat Dissipation 31 Energy Generation 15 Energy Capacity 200 Matter Stores 300 Matter Capacity 300 Sight Range 21 Robot Scan Range 14 Terrain Scan Range 16 Terrain Scan Density 10 Armor Coverage 800 Evasion (%) 55 Defensive Hacking 11 Item Schematics ----------------- None Robot Schematics ------------------ None Fabricated ------------ Nothing Alien Tech Used ----------------- None Achievements -------------- None Challenges ------------ None Game ------ Seed NovaSmartbombFalx Manual? 0 Play Time 00:43:22 Cumulative 228.6 hours Start 2024.09.02 @ 15:32:47 End 2024.09.02 @ 16:23:57 Sessions 1 Manual Loads 0 Difficulty Rogue Special Mode None Game No. 90 Rogue 87 Adventurer 0 Explorer 3 Win Type - Total 3 Types 2/0/0/1/0/0/0/0/0 Lore% 29 Gallery% 63 Achievement% 51 Wizard Run 0 Options --------- Layout 2 ASCII 0 Keyboard 1 Movement Numpad Keybinds 0 Fullscreen 2 Font 24/Terminus Map View 76x44 Zoom Use 0% Tactical HUD 1 Map Filters NONE Filters NONE Steam 1 RUN: 2130db6c-e159-458b-8886-15f1b9d6191d